[Event "Titled Tuesday Blitz April 4 Early 2023"]
[White "Corrales Jimenez, Fidel"]
[Black "Thomforde-Toates, Noah"]
[WhiteFideId "3506690"]
[BlackFideId "30951992"]
[WhiteElo "2541"]
[BlackElo "2693"]
[Result "1-0"]
[Round "07"]
[TimeControl "180+2"]
[Date "2023.04.04"]
[WhiteClock "0:02:12"]
[BlackClock "0:01:04"]

1. e4 {[%clk 0:03:00]}  c5 {[%clk 0:02:59]} 2. d4 {[%clk 0:03:00]}  cxd4 {[%clk 0:02:59]} 3. c3 {[%clk 0:02:58]}  d3 {[%clk 0:02:59]} 4. Bxd3 {[%clk 0:02:58]}  Nc6 {[%clk 0:02:59]} 5. f4 {[%clk 0:02:59]}  d6 {[%clk 0:02:59]} 6. Nf3 {[%clk 0:03:00]}  Bg4 {[%clk 0:02:58]} 7. h3 {[%clk 0:03:00]}  Bxf3 {[%clk 0:02:58]} 8. Qxf3 {[%clk 0:02:59]}  g6 {[%clk 0:02:59]} 9. Be3 {[%clk 0:03:00]}  Bg7 {[%clk 0:02:59]} 10. Nd2 {[%clk 0:02:59]}  Nf6 {[%clk 0:03:00]} 11. g4 {[%clk 0:02:58]}  h5 {[%clk 0:02:56]} 12. g5 {[%clk 0:02:58]}  Nd7 {[%clk 0:02:56]} 13. O-O-O {[%clk 0:02:59]}  Qa5 {[%clk 0:02:56]} 14. Kb1 {[%clk 0:02:58]}  O-O {[%clk 0:02:45]} 15. Nb3 {[%clk 0:02:57]}  Qc7 {[%clk 0:02:45]} 16. Rhe1 {[%clk 0:02:49]}  a6 {[%clk 0:02:41]} 17. e5 {[%clk 0:02:49]}  dxe5 {[%clk 0:02:37]} 18. f5 {[%clk 0:02:49]}  e4 {[%clk 0:02:32]} 19. Qxe4 {[%clk 0:02:48]}  Qe5 {[%clk 0:02:23]} 20. fxg6 {[%clk 0:02:48]}  Qxe4 {[%clk 0:02:21]} 21. Bxe4 {[%clk 0:02:49]}  Nde5 {[%clk 0:02:18]} 22. gxf7+ {[%clk 0:02:49]}  Kxf7 {[%clk 0:02:18]} 23. Nc5 {[%clk 0:02:46]}  b6 {[%clk 0:02:15]} 24. Nd7 {[%clk 0:02:45]}  Rad8 {[%clk 0:02:07]} 25. Nxe5+ {[%clk 0:02:45]}  Nxe5 {[%clk 0:02:06]} 26. Bxb6 {[%clk 0:02:45]}  Rxd1+ {[%clk 0:02:06]} 27. Rxd1 {[%clk 0:02:45]}  Ke6 {[%clk 0:02:06]} 28. Re1 {[%clk 0:02:43]}  h4 {[%clk 0:02:03]} 29. Bd4 {[%clk 0:02:44]}  Kd6 {[%clk 0:02:04]} 30. a4 {[%clk 0:02:43]}  Bh8 {[%clk 0:01:48]} 31. a5 {[%clk 0:02:43]}  Nf3 {[%clk 0:01:41]} 32. Bxf3 {[%clk 0:02:42]}  Bxd4 {[%clk 0:01:41]} 33. Rd1 {[%clk 0:02:34]}  Rxf3 {[%clk 0:01:20]} 34. Rxd4+ {[%clk 0:02:32]}  Ke5 {[%clk 0:01:20]} 35. Rxh4 {[%clk 0:02:31]}  Kf5 {[%clk 0:01:20]} 36. Rh6 {[%clk 0:02:26]}  Kxg5 {[%clk 0:01:15]} 37. Rxa6 {[%clk 0:02:23]}  e5 {[%clk 0:01:15]} 38. h4+ {[%clk 0:02:18]}  Kg4 {[%clk 0:01:12]} 39. Re6 {[%clk 0:02:14]}  Kf5 {[%clk 0:01:12]} 40. Re8 {[%clk 0:02:14]}  Rg3 {[%clk 0:01:05]} 41. a6 {[%clk 0:02:13]}  Rg7 {[%clk 0:01:04]} 42. b4 {[%clk 0:02:12]}  e4 {[%clk 0:01:03]} 43. b5 {[%clk 0:02:12]}  Kf4 {[%clk 0:01:04]} 44. b6 {[%clk 0:02:12]}  Rg6 {[%clk 0:01:04]} 45. b7 {[%clk 0:02:12]} 1-0


[Site "https://www.chess.com"]

[Event "Titled Tuesday Blitz April 4 Early 2023"]
[White "Moroni, Luca Jr"]
[Black "Ahn, Hongjin"]
[WhiteFideId "865834"]
[BlackFideId "13201492"]
[WhiteElo "2569"]
[BlackElo "2182"]
[Result "1-0"]
[Round "07"]
[TimeControl "180+2"]
[Date "2023.04.04"]
[WhiteClock "0:00:33"]
[BlackClock "0:00:15"]

1. d4 {[%clk 0:03:00]}  Nf6 {[%clk 0:02:59]} 2. Bf4 {[%clk 0:03:01]}  d6 {[%clk 0:02:56]} 3. Nc3 {[%clk 0:02:59]}  Bf5 {[%clk 0:02:54]} 4. f3 {[%clk 0:02:59]}  Bg6 {[%clk 0:02:53]} 5. e4 {[%clk 0:02:58]}  Nc6 {[%clk 0:02:51]} 6. Bb5 {[%clk 0:02:43]}  a6 {[%clk 0:02:49]} 7. Ba4 {[%clk 0:02:43]}  b5 {[%clk 0:02:47]} 8. Nxb5 {[%clk 0:02:36]}  e5 {[%clk 0:02:00]} 9. Nc3 {[%clk 0:02:03]}  exf4 {[%clk 0:01:53]} 10. Bxc6+ {[%clk 0:02:03]}  Nd7 {[%clk 0:01:53]} 11. Bxa8 {[%clk 0:02:02]}  Qxa8 {[%clk 0:01:54]} 12. Nge2 {[%clk 0:02:03]}  Be7 {[%clk 0:01:51]} 13. Nxf4 {[%clk 0:02:02]}  O-O {[%clk 0:01:51]} 14. O-O {[%clk 0:02:01]}  Qb7 {[%clk 0:01:48]} 15. b3 {[%clk 0:01:59]}  c6 {[%clk 0:01:47]} 16. Qd3 {[%clk 0:01:58]}  Bg5 {[%clk 0:01:43]} 17. Nce2 {[%clk 0:01:56]}  d5 {[%clk 0:01:40]} 18. Nxg6 {[%clk 0:01:54]}  hxg6 {[%clk 0:01:40]} 19. e5 {[%clk 0:01:46]}  Qb6 {[%clk 0:01:35]} 20. f4 {[%clk 0:01:45]}  Be7 {[%clk 0:01:34]} 21. c4 {[%clk 0:01:39]}  Re8 {[%clk 0:01:26]} 22. c5 {[%clk 0:01:37]}  Qb4 {[%clk 0:01:23]} 23. a3 {[%clk 0:01:23]}  Qb7 {[%clk 0:01:15]} 24. f5 {[%clk 0:01:17]}  Nf8 {[%clk 0:01:12]} 25. b4 {[%clk 0:01:16]}  Bg5 {[%clk 0:01:02]} 26. Rab1 {[%clk 0:01:16]}  Qc8 {[%clk 0:00:56]} 27. Kh1 {[%clk 0:01:16]}  f6 {[%clk 0:00:54]} 28. fxg6 {[%clk 0:01:05]}  fxe5 {[%clk 0:00:54]} 29. dxe5 {[%clk 0:01:06]}  Rxe5 {[%clk 0:00:53]} 30. Ng3 {[%clk 0:01:06]}  Bf6 {[%clk 0:00:48]} 31. a4 {[%clk 0:01:02]}  Rg5 {[%clk 0:00:43]} 32. b5 {[%clk 0:01:01]}  cxb5 {[%clk 0:00:41]} 33. axb5 {[%clk 0:01:02]}  axb5 {[%clk 0:00:42]} 34. Qxb5 {[%clk 0:01:02]}  Rxg6 {[%clk 0:00:37]} 35. c6 {[%clk 0:01:00]}  Qe6 {[%clk 0:00:27]} 36. c7 {[%clk 0:00:38]}  Be5 {[%clk 0:00:15]} 37. Rxf8+ {[%clk 0:00:35]}  Kh7 {[%clk 0:00:15]} 38. c8=Q {[%clk 0:00:33]} 1-0


[Site "https://www.chess.com"]

[Event "Titled Tuesday Blitz April 4 Early 2023"]
[White "Bacrot, Etienne"]
[Black "Papasimakopoulos, Alexandros"]
[WhiteFideId "605506"]
[BlackFideId "4244125"]
[WhiteElo "2663"]
[BlackElo "2359"]
[Result "0-1"]
[Round "07"]
[TimeControl "180+2"]
[Date "2023.04.04"]
[WhiteClock "0:00:03"]
[BlackClock "0:00:15"]

1. d4 {[%clk 0:03:00]}  e6 {[%clk 0:03:00]} 2. Nf3 {[%clk 0:03:00]}  Nf6 {[%clk 0:03:00]} 3. c4 {[%clk 0:03:00]}  Bb4+ {[%clk 0:02:59]} 4. Bd2 {[%clk 0:03:00]}  Qe7 {[%clk 0:02:57]} 5. Nc3 {[%clk 0:02:57]}  b6 {[%clk 0:02:56]} 6. g3 {[%clk 0:02:57]}  Bb7 {[%clk 0:02:56]} 7. Bg2 {[%clk 0:02:57]}  Bxc3 {[%clk 0:02:53]} 8. Bxc3 {[%clk 0:02:57]}  Ne4 {[%clk 0:02:53]} 9. Rc1 {[%clk 0:02:56]}  Nxc3 {[%clk 0:02:53]} 10. Rxc3 {[%clk 0:02:55]}  Be4 {[%clk 0:02:51]} 11. O-O {[%clk 0:02:55]}  O-O {[%clk 0:02:50]} 12. Qd2 {[%clk 0:02:40]}  d6 {[%clk 0:02:50]} 13. c5 {[%clk 0:02:39]}  bxc5 {[%clk 0:02:43]} 14. dxc5 {[%clk 0:02:39]}  d5 {[%clk 0:02:43]} 15. c6 {[%clk 0:02:40]}  a5 {[%clk 0:02:33]} 16. Rfc1 {[%clk 0:02:27]}  Na6 {[%clk 0:02:11]} 17. Ne5 {[%clk 0:02:27]}  Bxg2 {[%clk 0:02:05]} 18. Kxg2 {[%clk 0:02:28]}  Nb4 {[%clk 0:01:47]} 19. Ra1 {[%clk 0:02:09]}  f6 {[%clk 0:01:47]} 20. Nf3 {[%clk 0:02:03]}  Ra6 {[%clk 0:01:39]} 21. Nd4 {[%clk 0:01:36]}  e5 {[%clk 0:01:34]} 22. Nb5 {[%clk 0:01:18]}  d4 {[%clk 0:01:27]} 23. Rc4 {[%clk 0:01:18]}  Rb6 {[%clk 0:01:15]} 24. a4 {[%clk 0:01:07]}  Rxc6 {[%clk 0:01:13]} 25. Rxc6 {[%clk 0:01:05]}  Nxc6 {[%clk 0:01:14]} 26. Rc1 {[%clk 0:01:05]}  Qd7 {[%clk 0:01:14]} 27. Qd3 {[%clk 0:01:00]}  Qd5+ {[%clk 0:01:09]} 28. e4 {[%clk 0:01:00]}  Nb4 {[%clk 0:01:02]} 29. exd5 {[%clk 0:00:52]}  Nxd3 {[%clk 0:01:02]} 30. Rxc7 {[%clk 0:00:53]}  Nxb2 {[%clk 0:00:57]} 31. d6 {[%clk 0:00:47]}  Nxa4 {[%clk 0:00:54]} 32. d7 {[%clk 0:00:17]}  Nb6 {[%clk 0:00:53]} 33. Rb7 {[%clk 0:00:17]}  Nxd7 {[%clk 0:00:48]} 34. Rxd7 {[%clk 0:00:18]}  Ra8 {[%clk 0:00:45]} 35. Kf1 {[%clk 0:00:08]}  a4 {[%clk 0:00:44]} 36. Na3 {[%clk 0:00:09]}  h5 {[%clk 0:00:43]} 37. h4 {[%clk 0:00:08]}  Kh7 {[%clk 0:00:44]} 38. Ke2 {[%clk 0:00:09]}  Kg6 {[%clk 0:00:44]} 39. Kd2 {[%clk 0:00:09]}  Ra6 {[%clk 0:00:44]} 40. Rb7 {[%clk 0:00:09]}  Ra8 {[%clk 0:00:44]} 41. Rb4 {[%clk 0:00:08]}  Kf5 {[%clk 0:00:42]} 42. Kd3 {[%clk 0:00:08]}  Kg4 {[%clk 0:00:40]} 43. Ke2 {[%clk 0:00:08]}  Kf5 {[%clk 0:00:39]} 44. Rb7 {[%clk 0:00:08]}  g6 {[%clk 0:00:35]} 45. Rb5 {[%clk 0:00:07]}  Kg4 {[%clk 0:00:33]} 46. Rb4 {[%clk 0:00:05]}  Ra5 {[%clk 0:00:28]} 47. Rc4 {[%clk 0:00:05]}  g5 {[%clk 0:00:25]} 48. hxg5 {[%clk 0:00:04]}  fxg5 {[%clk 0:00:26]} 49. Rb4 {[%clk 0:00:03]}  h4 {[%clk 0:00:26]} 50. gxh4 {[%clk 0:00:03]}  gxh4 {[%clk 0:00:27]} 51. Nc4 {[%clk 0:00:04]}  Ra8 {[%clk 0:00:15]} 52. Nxe5+ {[%clk 0:00:04]}  Kf5 {[%clk 0:00:15]} 53. Nf3 {[%clk 0:00:04]}  a3 {[%clk 0:00:15]} 54. Rb1 {[%clk 0:00:04]}  a2 {[%clk 0:00:14]} 55. Ra1 {[%clk 0:00:04]}  h3 {[%clk 0:00:13]} 56. Kf1 {[%clk 0:00:03]}  Ke4 {[%clk 0:00:13]} 57. Nd2+ {[%clk 0:00:03]}  Kd3 {[%clk 0:00:13]} 58. Nb3 {[%clk 0:00:03]}  Kc3 {[%clk 0:00:13]} 59. Nc1 {[%clk 0:00:01]}  Kb2 {[%clk 0:00:13]} 60. Rxa2+ {[%clk 0:00:01]}  Rxa2 {[%clk 0:00:13]} 61. Nxa2 {[%clk 0:00:02]}  Kxa2 {[%clk 0:00:14]} 62. f4 {[%clk 0:00:02]}  d3 {[%clk 0:00:14]} 63. f5 {[%clk 0:00:02]}  h2 {[%clk 0:00:14]} 64. Kg2 {[%clk 0:00:02]}  d2 {[%clk 0:00:15]} 65. f6 {[%clk 0:00:03]}  h1=Q+ {[%clk 0:00:15]} 0-1


[Site "https://www.chess.com"]

[Event "Titled Tuesday Blitz April 4 Early 2023"]
[White "Salemgareev, Tagir"]
[Black "Yeletsky, Ivan"]
[WhiteFideId "24199052"]
[BlackFideId "24180327"]
[WhiteElo "2360"]
[BlackElo "2422"]
[Result "1-0"]
[Round "07"]
[TimeControl "180+2"]
[Date "2023.04.04"]
[WhiteClock "0:00:10"]
[BlackClock "0:00:02"]

1. d4 {[%clk 0:02:56]}  Nf6 {[%clk 0:02:58]} 2. Nf3 {[%clk 0:02:55]}  d6 {[%clk 0:02:58]} 3. c4 {[%clk 0:02:53]}  g6 {[%clk 0:02:58]} 4. Nc3 {[%clk 0:02:52]}  Bf5 {[%clk 0:02:58]} 5. g3 {[%clk 0:02:47]}  Bg7 {[%clk 0:02:52]} 6. Bg2 {[%clk 0:02:46]}  Ne4 {[%clk 0:02:49]} 7. Nb1 {[%clk 0:02:43]}  Bd7 {[%clk 0:02:43]} 8. O-O {[%clk 0:02:42]}  O-O {[%clk 0:02:43]} 9. Nfd2 {[%clk 0:02:26]}  Nxd2 {[%clk 0:02:36]} 10. Qxd2 {[%clk 0:02:25]}  Nc6 {[%clk 0:02:34]} 11. e3 {[%clk 0:02:21]}  a6 {[%clk 0:01:55]} 12. Nc3 {[%clk 0:02:21]}  Rb8 {[%clk 0:01:55]} 13. b3 {[%clk 0:02:16]}  b5 {[%clk 0:01:55]} 14. cxb5 {[%clk 0:02:14]}  axb5 {[%clk 0:01:56]} 15. Bb2 {[%clk 0:02:14]}  b4 {[%clk 0:01:44]} 16. Ne4 {[%clk 0:02:09]}  e6 {[%clk 0:01:43]} 17. Rfc1 {[%clk 0:02:06]}  Ne7 {[%clk 0:01:43]} 18. Qc2 {[%clk 0:01:54]}  Nd5 {[%clk 0:01:23]} 19. Nd2 {[%clk 0:01:48]}  Rb7 {[%clk 0:01:12]} 20. Nc4 {[%clk 0:01:43]}  Qa8 {[%clk 0:01:09]} 21. e4 {[%clk 0:01:29]}  Nc3 {[%clk 0:01:08]} 22. a3 {[%clk 0:01:26]}  Nb5 {[%clk 0:01:05]} 23. axb4 {[%clk 0:01:23]}  Qb8 {[%clk 0:01:03]} 24. Qd2 {[%clk 0:01:22]}  Na7 {[%clk 0:00:52]} 25. d5 {[%clk 0:01:12]}  Bxb2 {[%clk 0:00:42]} 26. Nxb2 {[%clk 0:01:11]}  exd5 {[%clk 0:00:29]} 27. exd5 {[%clk 0:01:12]}  Nc8 {[%clk 0:00:24]} 28. Nd3 {[%clk 0:01:11]}  Bf5 {[%clk 0:00:24]} 29. Nf4 {[%clk 0:00:57]}  Rxb4 {[%clk 0:00:24]} 30. Rxc7 {[%clk 0:00:51]}  Rxf4 {[%clk 0:00:20]} 31. Rxc8 {[%clk 0:00:45]}  Rxc8 {[%clk 0:00:21]} 32. Qxf4 {[%clk 0:00:45]}  h5 {[%clk 0:00:15]} 33. h4 {[%clk 0:00:44]}  Rc3 {[%clk 0:00:11]} 34. Bf3 {[%clk 0:00:31]}  Bh3 {[%clk 0:00:02]} 35. Kh2 {[%clk 0:00:27]}  Qxb3 {[%clk 0:00:02]} 36. Ra8+ {[%clk 0:00:18]}  Bc8 {[%clk 0:00:02]} 37. Qxd6 {[%clk 0:00:17]}  Rxf3 {[%clk 0:00:01]} 38. Rxc8+ {[%clk 0:00:17]}  Kg7 {[%clk 0:00:02]} 39. Qe5+ {[%clk 0:00:13]}  Rf6 {[%clk 0:00:02]} 40. Rc6 {[%clk 0:00:13]}  Qf3 {[%clk 0:00:03]} 41. Rxf6 {[%clk 0:00:12]}  Qxf6 {[%clk 0:00:04]} 42. f4 {[%clk 0:00:11]}  Qxe5 {[%clk 0:00:01]} 43. fxe5 {[%clk 0:00:11]}  f6 {[%clk 0:00:01]} 44. d6 {[%clk 0:00:10]}  Kf8 {[%clk 0:00:02]} 45. exf6 {[%clk 0:00:10]} 1-0


[Site "https://www.chess.com"]

[Event "Titled Tuesday Blitz April 4 Early 2023"]
[White "Belozerov, Andrei"]
[Black "Real_OceanStorm"]
[WhiteFideId "4120213"]
[WhiteElo "2373"]
[BlackElo "2806"]
[Result "0-1"]
[Round "07"]
[TimeControl "180+2"]
[Date "2023.04.04"]
[WhiteClock "0:00:11"]
[BlackClock "0:00:42"]

1. e4 {[%clk 0:02:59]}  c5 {[%clk 0:02:58]} 2. Nf3 {[%clk 0:02:59]}  Nc6 {[%clk 0:02:59]} 3. Bb5 {[%clk 0:02:58]}  e6 {[%clk 0:02:58]} 4. O-O {[%clk 0:02:57]}  Be7 {[%clk 0:02:56]} 5. Re1 {[%clk 0:02:36]}  Qb6 {[%clk 0:02:51]} 6. Nc3 {[%clk 0:02:29]}  Nd4 {[%clk 0:02:45]} 7. a4 {[%clk 0:02:28]}  a6 {[%clk 0:02:40]} 8. Bc4 {[%clk 0:02:17]}  d6 {[%clk 0:02:36]} 9. d3 {[%clk 0:02:12]}  Bd7 {[%clk 0:02:33]} 10. a5 {[%clk 0:02:07]}  Qc7 {[%clk 0:02:33]} 11. Nxd4 {[%clk 0:02:07]}  cxd4 {[%clk 0:02:34]} 12. Ne2 {[%clk 0:02:07]}  Bf6 {[%clk 0:02:34]} 13. b4 {[%clk 0:01:48]}  Ne7 {[%clk 0:02:33]} 14. Bb2 {[%clk 0:01:48]}  Nc6 {[%clk 0:02:32]} 15. Qd2 {[%clk 0:01:41]}  O-O {[%clk 0:02:25]} 16. Ng3 {[%clk 0:01:38]}  g6 {[%clk 0:02:17]} 17. f4 {[%clk 0:01:32]}  b6 {[%clk 0:02:15]} 18. axb6 {[%clk 0:01:18]}  Qxb6 {[%clk 0:02:14]} 19. Reb1 {[%clk 0:01:16]}  Qxb4 {[%clk 0:01:46]} 20. Qxb4 {[%clk 0:00:37]}  Nxb4 {[%clk 0:01:46]} 21. e5 {[%clk 0:00:37]}  dxe5 {[%clk 0:01:38]} 22. Ne4 {[%clk 0:00:36]}  Bg7 {[%clk 0:01:21]} 23. Ba3 {[%clk 0:00:32]}  a5 {[%clk 0:01:15]} 24. Nc5 {[%clk 0:00:27]}  Bc6 {[%clk 0:01:13]} 25. fxe5 {[%clk 0:00:24]}  Nxc2 {[%clk 0:00:45]} 26. Nxe6 {[%clk 0:00:24]}  Nxa3 {[%clk 0:00:44]} 27. Nxf8 {[%clk 0:00:19]}  Nxb1 {[%clk 0:00:43]} 28. e6 {[%clk 0:00:13]}  Nd2 {[%clk 0:00:42]} 29. Nd7 {[%clk 0:00:11]}  Nxc4 {[%clk 0:00:42]} 0-1


[Site "https://www.chess.com"]

[Event "Titled Tuesday Blitz April 4 Early 2023"]
[White "Samunenkov, Ihor"]
[Black "Shvedova, Alexandra"]
[WhiteFideId "14187086"]
[BlackFideId "54154782"]
[WhiteElo "2457"]
[BlackElo "2057"]
[Result "1-0"]
[Round "07"]
[TimeControl "180+2"]
[Date "2023.04.04"]
[WhiteClock "0:00:08"]
[BlackClock "0:00:33"]

1. d4 {[%clk 0:03:00]}  Nf6 {[%clk 0:02:59]} 2. Nf3 {[%clk 0:03:01]}  d5 {[%clk 0:02:58]} 3. c4 {[%clk 0:03:00]}  e6 {[%clk 0:02:58]} 4. g3 {[%clk 0:03:01]}  dxc4 {[%clk 0:02:57]} 5. Bg2 {[%clk 0:03:01]}  Nc6 {[%clk 0:02:57]} 6. O-O {[%clk 0:02:59]}  Rb8 {[%clk 0:02:56]} 7. e3 {[%clk 0:02:37]}  b5 {[%clk 0:02:54]} 8. b3 {[%clk 0:02:32]}  cxb3 {[%clk 0:02:50]} 9. axb3 {[%clk 0:02:31]}  Bb7 {[%clk 0:02:48]} 10. Bb2 {[%clk 0:02:30]}  Be7 {[%clk 0:02:43]} 11. Nbd2 {[%clk 0:02:23]}  O-O {[%clk 0:02:43]} 12. Qe2 {[%clk 0:02:24]}  a6 {[%clk 0:02:42]} 13. Rfc1 {[%clk 0:02:24]}  Nb4 {[%clk 0:02:40]} 14. e4 {[%clk 0:02:18]}  c5 {[%clk 0:02:39]} 15. e5 {[%clk 0:02:13]}  Nd7 {[%clk 0:02:33]} 16. Ne4 {[%clk 0:02:02]}  cxd4 {[%clk 0:02:30]} 17. Bxd4 {[%clk 0:01:57]}  h6 {[%clk 0:02:18]} 18. Nd6 {[%clk 0:01:37]}  Bd5 {[%clk 0:02:14]} 19. Bc3 {[%clk 0:01:26]}  Nc6 {[%clk 0:02:10]} 20. Rxa6 {[%clk 0:01:20]}  Nc5 {[%clk 0:02:06]} 21. Ba5 {[%clk 0:00:59]}  Nxa5 {[%clk 0:01:50]} 22. Rxc5 {[%clk 0:01:00]}  Nxb3 {[%clk 0:01:46]} 23. Rxd5 {[%clk 0:00:39]}  exd5 {[%clk 0:01:46]} 24. Qc2 {[%clk 0:00:40]}  Rb6 {[%clk 0:01:36]} 25. Rxb6 {[%clk 0:00:38]}  Qxb6 {[%clk 0:01:37]} 26. Qxb3 {[%clk 0:00:38]}  Bxd6 {[%clk 0:01:37]} 27. exd6 {[%clk 0:00:38]}  Qxd6 {[%clk 0:01:38]} 28. Qxb5 {[%clk 0:00:38]}  d4 {[%clk 0:01:36]} 29. Bf1 {[%clk 0:00:34]}  Rb8 {[%clk 0:01:32]} 30. Qc4 {[%clk 0:00:33]}  Rd8 {[%clk 0:01:21]} 31. Bd3 {[%clk 0:00:33]}  Qd7 {[%clk 0:01:16]} 32. Kg2 {[%clk 0:00:32]}  Rc8 {[%clk 0:01:15]} 33. Qa6 {[%clk 0:00:28]}  Rc6 {[%clk 0:01:11]} 34. Qa4 {[%clk 0:00:26]}  Rc7 {[%clk 0:01:07]} 35. Qa8+ {[%clk 0:00:23]}  Rc8 {[%clk 0:01:07]} 36. Qe4 {[%clk 0:00:23]}  g6 {[%clk 0:01:05]} 37. Ne5 {[%clk 0:00:23]}  Qe6 {[%clk 0:01:01]} 38. Qxd4 {[%clk 0:00:22]}  Re8 {[%clk 0:00:59]} 39. Nf3 {[%clk 0:00:17]}  Qc6 {[%clk 0:00:50]} 40. h4 {[%clk 0:00:16]}  h5 {[%clk 0:00:43]} 41. Bc4 {[%clk 0:00:14]}  Re4 {[%clk 0:00:36]} 42. Bxf7+ {[%clk 0:00:08]}  Kxf7 {[%clk 0:00:35]} 43. Ng5+ {[%clk 0:00:08]}  Kg8 {[%clk 0:00:33]} 44. Qxe4 {[%clk 0:00:08]} 1-0


[Site "https://www.chess.com"]

[Event "Titled Tuesday Blitz April 4 Early 2023"]
[White "Hamitevici, Vladimir"]
[Black "Vidit, Santosh Gujrathi"]
[WhiteFideId "13902393"]
[BlackFideId "5029465"]
[WhiteElo "2401"]
[BlackElo "2651"]
[Result "0-1"]
[Round "07"]
[TimeControl "180+2"]
[Date "2023.04.04"]
[WhiteClock "0:00:09"]
[BlackClock "0:00:13"]

1. Nf3 {[%clk 0:02:48]}  c5 {[%clk 0:02:57]} 2. g3 {[%clk 0:02:48]}  Nc6 {[%clk 0:02:57]} 3. Bg2 {[%clk 0:02:45]}  Nf6 {[%clk 0:02:54]} 4. O-O {[%clk 0:02:42]}  e5 {[%clk 0:02:55]} 5. c4 {[%clk 0:02:38]}  d5 {[%clk 0:02:52]} 6. cxd5 {[%clk 0:02:35]}  Nxd5 {[%clk 0:02:53]} 7. Nc3 {[%clk 0:02:33]}  Be6 {[%clk 0:02:52]} 8. d3 {[%clk 0:02:31]}  Be7 {[%clk 0:02:51]} 9. Bd2 {[%clk 0:02:29]}  O-O {[%clk 0:02:47]} 10. a3 {[%clk 0:02:28]}  Nb6 {[%clk 0:02:34]} 11. Rc1 {[%clk 0:02:03]}  c4 {[%clk 0:02:28]} 12. Ne1 {[%clk 0:01:58]}  Rc8 {[%clk 0:02:26]} 13. Be3 {[%clk 0:01:56]}  cxd3 {[%clk 0:02:02]} 14. Nxd3 {[%clk 0:01:57]}  Nc4 {[%clk 0:02:03]} 15. Bc5 {[%clk 0:01:50]}  Nd4 {[%clk 0:01:09]} 16. Bxe7 {[%clk 0:01:07]}  Qxe7 {[%clk 0:01:10]} 17. e3 {[%clk 0:00:54]}  Nf5 {[%clk 0:00:58]} 18. Nd5 {[%clk 0:00:39]}  Qd6 {[%clk 0:00:57]} 19. N3b4 {[%clk 0:00:27]}  a5 {[%clk 0:00:44]} 20. Rxc4 {[%clk 0:00:27]}  Rxc4 {[%clk 0:00:42]} 21. Qb3 {[%clk 0:00:12]}  b5 {[%clk 0:00:31]} 22. Rd1 {[%clk 0:00:11]}  axb4 {[%clk 0:00:26]} 23. Nf6+ {[%clk 0:00:11]}  gxf6 {[%clk 0:00:26]} 24. Rxd6 {[%clk 0:00:12]}  Rc1+ {[%clk 0:00:20]} 25. Qd1 {[%clk 0:00:10]}  Rxd1+ {[%clk 0:00:18]} 26. Rxd1 {[%clk 0:00:11]}  bxa3 {[%clk 0:00:17]} 27. bxa3 {[%clk 0:00:12]}  Bc4 {[%clk 0:00:16]} 28. Bc6 {[%clk 0:00:11]}  Rb8 {[%clk 0:00:14]} 29. Rc1 {[%clk 0:00:10]}  Ne7 {[%clk 0:00:14]} 30. Bd7 {[%clk 0:00:11]}  Rb7 {[%clk 0:00:14]} 31. Bg4 {[%clk 0:00:09]}  Ra7 {[%clk 0:00:14]} 32. Rc3 {[%clk 0:00:09]}  Nd5 {[%clk 0:00:13]} 0-1


[Site "https://www.chess.com"]

[Event "Titled Tuesday Blitz April 4 Early 2023"]
[White "Ashraf, Artin"]
[Black "Bodnaruk, Anastasia"]
[WhiteFideId "22514805"]
[BlackFideId "4181751"]
[WhiteElo "2188"]
[BlackElo "2310"]
[Result "1/2-1/2"]
[Round "07"]
[TimeControl "180+2"]
[Date "2023.04.04"]
[WhiteClock "0:00:09"]
[BlackClock "0:00:05"]

1. b3 {[%clk 0:02:54]}  e5 {[%clk 0:02:54]} 2. Bb2 {[%clk 0:02:54]}  d6 {[%clk 0:02:54]} 3. e3 {[%clk 0:02:53]}  f5 {[%clk 0:02:52]} 4. d4 {[%clk 0:02:53]}  e4 {[%clk 0:02:48]} 5. Ne2 {[%clk 0:02:49]}  Be6 {[%clk 0:02:40]} 6. Nf4 {[%clk 0:02:48]}  Bf7 {[%clk 0:02:40]} 7. h4 {[%clk 0:02:48]}  d5 {[%clk 0:02:39]} 8. Ba3 {[%clk 0:02:33]}  Bxa3 {[%clk 0:02:31]} 9. Nxa3 {[%clk 0:02:34]}  Nf6 {[%clk 0:02:31]} 10. c4 {[%clk 0:02:33]}  c5 {[%clk 0:02:23]} 11. Nc2 {[%clk 0:02:08]}  Qa5+ {[%clk 0:02:15]} 12. Qd2 {[%clk 0:02:07]}  Qxd2+ {[%clk 0:02:15]} 13. Kxd2 {[%clk 0:02:08]}  Nbd7 {[%clk 0:02:12]} 14. cxd5 {[%clk 0:01:53]}  Nxd5 {[%clk 0:02:11]} 15. Nxd5 {[%clk 0:01:44]}  Bxd5 {[%clk 0:02:10]} 16. dxc5 {[%clk 0:01:44]}  Nxc5 {[%clk 0:02:05]} 17. Nd4 {[%clk 0:01:43]}  g6 {[%clk 0:02:02]} 18. Rc1 {[%clk 0:01:42]}  Ne6 {[%clk 0:01:46]} 19. Bb5+ {[%clk 0:00:57]}  Ke7 {[%clk 0:01:46]} 20. Nxe6 {[%clk 0:00:57]}  Kxe6 {[%clk 0:01:16]} 21. Rc7 {[%clk 0:00:53]}  Rhd8 {[%clk 0:01:14]} 22. Kc3 {[%clk 0:00:30]}  a6 {[%clk 0:01:06]} 23. Be2 {[%clk 0:00:28]}  Rac8 {[%clk 0:00:56]} 24. Rxc8 {[%clk 0:00:27]}  Rxc8+ {[%clk 0:00:56]} 25. Kb2 {[%clk 0:00:28]}  h6 {[%clk 0:00:49]} 26. g4 {[%clk 0:00:18]}  Rf8 {[%clk 0:00:43]} 27. g5 {[%clk 0:00:16]}  h5 {[%clk 0:00:42]} 28. Kc3 {[%clk 0:00:13]}  f4 {[%clk 0:00:42]} 29. Kd4 {[%clk 0:00:13]}  fxe3 {[%clk 0:00:39]} 30. Kxe3 {[%clk 0:00:13]}  Ke5 {[%clk 0:00:39]} 31. Rd1 {[%clk 0:00:09]}  Rc8 {[%clk 0:00:37]} 32. Kd2 {[%clk 0:00:06]}  Kf4 {[%clk 0:00:34]} 33. Rc1 {[%clk 0:00:04]}  Rxc1 {[%clk 0:00:26]} 34. Kxc1 {[%clk 0:00:05]}  Be6 {[%clk 0:00:27]} 35. Kd2 {[%clk 0:00:04]}  Bg4 {[%clk 0:00:27]} 36. Bc4 {[%clk 0:00:05]}  Kf3 {[%clk 0:00:20]} 37. Bd5 {[%clk 0:00:04]}  Bf5 {[%clk 0:00:17]} 38. Bxb7 {[%clk 0:00:04]}  Kxf2 {[%clk 0:00:14]} 39. Bxa6 {[%clk 0:00:05]}  e3+ {[%clk 0:00:14]} 40. Kc3 {[%clk 0:00:06]}  e2 {[%clk 0:00:10]} 41. Bxe2 {[%clk 0:00:06]}  Kxe2 {[%clk 0:00:10]} 42. a4 {[%clk 0:00:06]}  Kf3 {[%clk 0:00:09]} 43. b4 {[%clk 0:00:07]}  Bd7 {[%clk 0:00:08]} 44. b5 {[%clk 0:00:07]}  Kg4 {[%clk 0:00:08]} 45. Kb4 {[%clk 0:00:07]}  Kxh4 {[%clk 0:00:08]} 46. a5 {[%clk 0:00:08]}  Kxg5 {[%clk 0:00:05]} 47. a6 {[%clk 0:00:09]}  Bc8 {[%clk 0:00:05]} 48. Ka5 {[%clk 0:00:08]}  h4 {[%clk 0:00:05]} 49. b6 {[%clk 0:00:09]}  h3 {[%clk 0:00:04]} 50. b7 {[%clk 0:00:09]}  Bxb7 {[%clk 0:00:03]} 51. axb7 {[%clk 0:00:10]}  h2 {[%clk 0:00:04]} 52. b8=Q {[%clk 0:00:11]}  h1=Q {[%clk 0:00:04]} 53. Qe5+ {[%clk 0:00:09]}  Kg4 {[%clk 0:00:04]} 54. Qd4+ {[%clk 0:00:09]}  Kf5 {[%clk 0:00:04]} 55. Qc5+ {[%clk 0:00:08]}  Kf4 {[%clk 0:00:04]} 56. Qd6+ {[%clk 0:00:08]}  Kf5 {[%clk 0:00:04]} 57. Qc5+ {[%clk 0:00:09]}  Kf6 {[%clk 0:00:05]} 58. Qd6+ {[%clk 0:00:09]}  Kf5 {[%clk 0:00:05]} 59. Qc5+ {[%clk 0:00:09]} 1/2-1/2


[Site "https://www.chess.com"]